bitfinex-derivatives/quotes_ETHF0:USTF0_20250518
["timestamp","ask_amount","ask_price","bid_price","bid_amount"]
[1747562772583,0.79599,2511.9,2511.8,0.79597]
[1747562772778,2.05299,2511.9,2511.8,0.79597]
[1747562773378,1.45414,2512.0,2511.9,0.79596]
[1747562775086,0.79594,2512.0,2511.9,0.79596]
[1747562775784,0.79594,2512.0,2511.9,1.47746]
[1747562777083,3.85394,2512.0,2511.9,0.6815]
[1747562777286,0.79596,2511.9,2511.8,2.08137]
[1747562777487,3.85395,2512.0,2511.9,0.79596]
[1747562777786,0.79596,2511.9,2511.8,2.08137]
[1747562777983,3.85395,2512.0,2511.9,0.79596]
[1747562778185,0.79595,2512.0,2511.9,0.79596]
[1747562779085,3.85395,2512.0,2511.9,0.79596]
[1747562779486,3.058,2512.0,2511.9,0.79596]
[1747562780076,6.35121596,2512.4,2511.9,5.6636]
[1747562780288,3.14341596,2512.4,2512.3,0.79583]
[1747562781290,3.14341596,2512.4,2512.1,1.3614]
[1747562781588,3.93923596,2512.4,2512.3,0.79583]
[1747562782080,0.79583,2512.3,2512.2,2.15725]
[1747562782275,0.79583,2512.3,2512.2,1.3614]
[1747562782781,0.7959,2512.1,2512.0,1.44961]
[1747562783082,0.7959,2512.1,2512.0,2.81101]
[1747562784387,0.79588,2512.2,2512.1,0.79586]
[1747562784577,0.79588,2512.2,2512.1,2.06486]
[1747562785088,3.85388,2512.2,2512.1,2.06486]
[1747562786088,3.058,2512.2,2512.1,2.06486]
[1747562786984,0.7959,2512.1,2512.0,0.6537]
[1747562787190,0.79593,2512.0,2511.9,2.82963]
[1747562788288,0.79591,2512.1,2512.0,0.7959]
[1747562788790,0.79593,2512.0,2511.9,0.79595]
[1747562789188,3.85393,2512.0,2511.9,0.79595]
[1747562789387,3.058,2512.0,2511.9,0.79595]
[1747562789889,4.4024,2512.0,2511.9,0.79595]
[1747562790089,4.4024,2512.0,2511.9,2.13585]
[1747562790593,5.19833,2512.0,2511.9,2.13585]
[1747562791395,0.79599,2511.8,2511.7,4.0038]
[1747562792091,3.85399,2511.8,2511.7,4.0038]
[1747562792290,4.53259,2511.8,2511.7,4.0038]
[1747562794092,3.7366,2511.8,2511.7,4.0038]
[1747562794797,5.066,2511.8,2511.7,4.0038]
[1747562795190,2.008,2511.8,2511.7,4.0038]
[1747562796096,5.86199,2511.8,2511.7,4.0038]
[1747562798289,3.85399,2511.8,2511.7,4.0038]
[1747562798491,3.85399,2511.8,2511.7,5.2868]
[1747562800996,5.81789,2511.8,2511.7,5.2868]
[1747562803194,2.75989,2511.8,2511.7,5.2868]
[1747562804091,5.81789,2511.8,2511.7,5.2868]
[1747562804898,5.0219,2511.8,2511.7,5.2868]
[1747562806395,5.81789,2511.8,2511.7,5.2868]
[1747562811702,5.81789,2511.8,2511.7,3.2078]
[1747562812001,0.7961,2511.5,2511.4,0.79611]
[1747562812199,0.7961,2511.5,2511.4,2.07821]
[1747562813193,3.8541,2511.5,2511.4,2.07821]
[1747562813898,0.79612,2511.4,2511.3,3.2078]
[1747562814098,0.79618,2511.2,2511.1,1.19275341]
[1747562815201,3.85418,2511.2,2511.1,1.19275341]
[1747562815404,0.79621,2511.1,2511.0,2.68884]
[1747562815708,2.16381,2511.1,2511.0,2.68884]
[1747562816205,5.22181,2511.1,2511.0,2.68884]
[1747562821319,0.79624,2511.0,2510.9,3.2078]
[1747562821515,3.37794,2511.0,2510.9,3.2078]
[1747562821713,0.79631,2510.8,2510.7,1.9783]
[1747562822213,3.85431,2510.8,2510.7,2.77464]
[1747562823318,0.79631,2510.8,2510.7,1.9783]
[1747562824012,0.79631,2510.8,2510.7,2.77464]
[1747562824306,0.79634,2510.7,2510.6,1.19275341]
[1747562824505,2.06714,2510.7,2510.6,1.19275341]
[1747562824701,7.06714,2510.7,2510.6,1.19275341]
[1747562825211,0.79644,2510.4,2510.2,5.99448]
[1747562825707,1.2708,2510.3,2510.2,5.99448]
[1747562826307,2.06727,2510.3,2510.2,5.198]
[1747562826506,2.06727,2510.3,2510.2,3.2078]
[1747562827210,5.12527,2510.3,2510.2,3.2078]
[1747562828304,5.12527,2510.3,2510.2,4.0043]
[1747562829213,5.12527,2510.3,2510.2,3.2078]
[1747562829610,0.79653,2510.1,2510.0,1.3651]
[1747562830213,5.16293,2510.1,2510.0,1.3651]
[1747562830814,5.16293,2510.1,2510.0,0.6856]
[1747562831013,0.79656,2510.0,2509.9,3.2078]
[1747562831314,0.79663,2509.8,2509.7,2.5824]
[1747562832108,3.85463,2509.8,2509.7,3.37906]
[1747562832305,3.058,2509.8,2509.7,3.37906]
[1747562832515,3.85463,2509.8,2509.7,3.37906]
[1747562833108,0.79663,2509.8,2509.7,3.37906]
[1747562833312,0.79663,2509.8,2509.7,2.5824]
[1747562833913,1.45193,2509.8,2509.7,2.5824]
[1747562834316,0.79678,2509.3,2509.2,3.2078]
[1747562834508,0.79678,2509.3,2509.2,4.64722]
[1747562835618,0.79678,2509.3,2509.2,3.8504]
[1747562835914,0.79678,2509.3,2509.2,4.64722]
[1747562836108,0.79678,2509.3,2509.2,5.96092]
[1747562836309,0.79678,2509.3,2509.2,5.1641]
[1747562836904,2.06468,2509.3,2509.2,5.1641]
[1747562837108,5.12268,2509.3,2509.2,3.2078]
[1747562839418,3.85478,2509.3,2509.2,3.2078]
[1747562840118,2.07698,2509.3,2509.2,3.2078]
[1747562840521,1.99215,2509.1,2508.7,3.2078]
[1747562840714,0.79698,2508.7,2508.6,0.6891]
[1747562841514,0.79698,2508.7,2508.6,2.6708]
[1747562842118,0.79694,2508.8,2508.7,0.79697]
[1747562842319,0.79694,2508.8,2508.7,1.2947]
[1747562844325,1.4474,2509.0,2508.7,1.2947]
[1747562844525,8.5625,2509.0,2508.7,1.2947]
[1747562844823,0.79694,2508.9,2508.8,0.79694]
[1747562845426,0.79694,2508.8,2508.7,2.09165]
[1747562846822,0.79683,2509.2,2509.1,0.79683]
[1747562847727,19.0198,2510.0,2509.2,1.99205]
[1747562847923,1.3322,2509.8,2509.7,0.79666]
[1747562848429,0.79667,2509.7,2509.6,0.79667]
[1747562848727,0.7967,2509.6,2509.5,0.7967]
[1747562849027,3.2078,2509.7,2509.3,1.9931]
[1747562849229,0.79675,2509.4,2509.3,1.9931]
[1747562849526,0.79675,2509.4,2509.3,1.3043]
[1747562849925,0.79675,2509.4,2509.3,2.10108]
[1747562850224,0.79673,2509.5,2509.4,0.79674]
[1747562850527,0.79675,2509.4,2509.3,2.10108]
[1747562850827,0.79675,2509.4,2509.3,1.3043]
[1747562851419,4.00455,2509.4,2509.3,1.3043]
[1747562851620,0.79675,2509.4,2509.3,1.3043]
[1747562851930,0.79683,2509.2,2509.1,0.79685]
[1747562852134,0.79683,2509.2,2509.1,1.2633]
[1747562852925,0.79685,2509.1,2509.0,2.16905]
[1747562853727,0.79688,2509.0,2508.9,1.2633]
[1747562854025,3.2078,2509.1,2509.0,0.79688]
[1747562854222,0.79688,2509.0,2508.9,2.0602]
[1747562854522,0.79691,2508.9,2508.8,0.79693]
[1747562854729,0.79694,2508.8,2508.7,1.44196]
[1747562856228,2.04354,2508.9,2508.8,0.79694]
[1747562856523,3.2078,2509.1,2509.0,0.79688]
[1747562857323,3.2078,2509.1,2509.0,1.48588]
[1747562858228,3.2078,2509.4,2509.3,0.79678]
[1747562858425,4.00455,2509.4,2509.3,0.79678]
[1747562858819,0.79675,2509.4,2509.3,2.07348]
[1747562859930,0.79678,2509.3,2509.2,0.6437]
[1747562860127,2.07888,2509.3,2509.2,0.6437]
[1747562860431,0.79695,2508.9,2508.8,0.79692]
[1747562860632,0.79695,2508.9,2508.8,2.71192]
[1747562861130,3.2078,2509.0,2508.9,0.79691]
[1747562861331,3.2078,2509.0,2508.9,2.05771]
[1747562861936,3.2078,2509.0,2508.9,7.05771]
[1747562862131,3.2078,2509.0,2508.9,10.11571]
[1747562862331,0.79677,2509.4,2509.3,0.79678]
[1747562863832,0.79677,2509.4,2509.3,2.12518]
[1747562864034,0.79677,2509.4,2509.3,1.3284]
[1747562864334,0.79677,2509.4,2509.3,2.12518]
[1747562864532,2.07885,2509.5,2509.4,0.79675]
[1747562864727,0.79675,2509.5,2509.4,2.12515]
[1747562865033,0.79675,2509.5,2509.4,1.3284]
[1747562866134,0.79678,2509.3,2509.2,1.3296]
[1747562866332,4.4938,2509.4,2509.2,2.12642]
[1747562866533,5.29055,2509.4,2509.3,1.3772]
[1747562867037,5.29055,2509.4,2509.3,2.17398]
[1747562867434,3.2078,2509.4,2509.3,2.17398]
[1747562869041,4.00455,2509.4,2509.3,2.17398]
[1747562872241,4.00455,2509.4,2509.3,1.3772]
[1747562872641,4.00455,2509.4,2509.3,2.17398]
[1747562874742,0.79675,2509.4,2509.3,2.17398]
[1747562875748,4.5631,2509.5,2509.4,0.79675]
[1747562875939,3.2078,2509.5,2509.4,2.08975]
[1747562876848,4.00452,2509.5,2509.4,2.08975]
[1747562879050,0.79678,2509.4,2509.3,0.79677]
[1747562879350,2.77158,2509.4,2509.3,0.79677]
[1747562879653,1.9748,2509.4,2509.3,0.79677]
[1747562880048,1.9748,2509.4,2509.3,2.10077]
[1747562883455,2.6363,2509.4,2509.3,2.10077]
[1747562884452,2.6363,2509.4,2509.3,0.79677]
[1747562885247,1.9748,2509.4,2509.3,2.07157]
[1747562886754,1.9748,2509.4,2509.3,0.79677]
[1747562888750,1.9748,2509.4,2509.3,2.72957]
[1747562889349,0.79684,2509.2,2509.1,0.7968]
[1747562889554,1.2871,2509.3,2509.2,0.79682]
[1747562889753,2.08388,2509.3,2509.2,0.79682]
[1747562891152,0.79685,2509.2,2509.1,0.79682]
[1747562891347,2.67415,2509.2,2509.1,0.79682]
[1747562891561,2.67415,2509.2,2509.1,1.99061776]
[1747562893460,1.8773,2509.2,2509.1,1.99061776]
[1747562894362,1.8773,2509.2,2509.1,0.79682]
[1747562894557,1.8773,2509.2,2509.1,2.08152]
[1747562894757,2.67412,2509.2,2509.1,2.08152]
[1747562894959,0.79682,2509.2,2509.1,2.08152]
[1747562895260,0.6829,2509.4,2509.3,0.79678]
[1747562895663,1.3578,2509.5,2509.4,0.79675]
[1747562896265,3.2078,2509.6,2509.5,0.79672]
[1747562897071,3.2078,2509.6,2509.5,2.15162]
[1747562897267,3.2078,2509.6,2509.5,5.20962]
[1747562897762,4.00449,2509.6,2509.5,46.00962]
[1747562897967,4.00449,2509.6,2509.5,45.2129]
[1747562898160,4.00449,2509.6,2509.5,42.1549]
[1747562898465,4.00449,2509.6,2509.5,1.3549]
[1747562898867,4.00449,2509.6,2509.5,2.15162]
[1747562899469,4.00449,2509.6,2509.5,1.3549]
[1747562900171,4.00449,2509.6,2509.5,2.15162]
[1747562900371,4.00449,2509.6,2509.5,1.3549]
[1747562900670,4.00449,2509.6,2509.5,2.15162]
[1747562901069,3.2078,2509.6,2509.5,2.15162]
[1747562901273,0.79668,2509.7,2509.6,0.79669]
[1747562901869,3.2078,2509.9,2509.5,1.3549]
[1747562902063,3.2078,2509.9,2509.6,0.622]
[1747562902263,3.2078,2509.9,2509.8,0.79663]
[1747562902772,3.2078,2509.9,2509.8,2.04983]
[1747562903274,3.2078,2509.9,2509.8,3.20126252]
[1747562906377,3.2078,2509.9,2509.8,2.04983]
[1747562908973,0.79655,2510.1,2510.0,0.79656]
[1747562909174,1.2618,2510.3,2510.2,0.7965]
[1747562909474,0.79644,2510.4,2510.3,0.79644]
[1747562909971,0.79647,2510.3,2510.2,2.11098]
[1747562910775,0.79647,2510.3,2510.1,0.6266]
[1747562910776,0.7965,2510.2,2510.1,1.42311]
[1747562910976,0.7965,2510.2,2510.1,0.79651]
[1747562911476,2.0867,2510.2,2510.1,0.79651]
[1747562912173,1.2902,2510.2,2509.9,3.2078]
[1747562912379,0.79656,2510.0,2509.9,4.00437]
[1747562912579,0.79656,2510.0,2509.9,0.79657]
[1747562912783,2.08676,2510.0,2509.9,0.79657]
[1747562917481,1.2902,2510.0,2509.4,1.2733]
[1747562917673,2.74122,2509.9,2509.5,1.99181]
[1747562917876,0.79659,2510.0,2509.9,0.79656]
[1747562918178,3.85459,2510.0,2509.9,0.79656]
[1747562918379,4.3613,2510.0,2509.9,0.79656]
[1747562918583,5.15786,2510.0,2509.9,0.79656]
[1747562919184,2.09986,2510.0,2509.9,0.79656]
[1747562919886,1.3033,2510.0,2509.9,0.79656]
[1747562920079,3.8425,2510.1,2510.0,0.79656]
[1747562920382,3.2078,2510.1,2510.0,0.79656]
[1747562920880,3.2078,2510.1,2510.0,2.78186]
[1747562922376,3.2078,2510.1,2510.0,3.46776]
[1747562923284,3.2078,2510.1,2510.0,0.79656]
[1747562923683,5.99743,2510.1,2510.0,0.79656]
[1747562923886,0.79656,2510.0,2509.9,0.79657]
[1747562924077,2.74926,2510.0,2509.9,0.79659]
[1747562926285,5.80726,2510.0,2509.9,0.79659]
[1747562927087,2.74926,2510.0,2509.9,0.79659]
[1747562930393,1.9527,2510.0,2509.9,0.79659]
[1747562931389,2.74926,2510.0,2509.9,0.79659]
[1747562932591,1.9527,2510.0,2509.9,0.79659]
[1747562933693,2.74926,2510.0,2509.9,0.79659]
[1747562937091,0.79663,2509.9,2509.8,0.7966]
[1747562937297,0.79663,2509.8,2509.7,1.3733]
[1747562937593,0.79663,2509.8,2509.7,0.79666]
[1747562937794,0.79669,2509.6,2509.5,3.90820776]
[1747562937995,0.79669,2509.6,2509.5,1.19379776]
[1747562938496,2.81279,2509.6,2509.5,1.19379776]
[1747562938688,10.70379,2509.6,2509.5,1.19379776]
[1747562938883,23.91404849,2509.6,2509.5,1.19379776]
[1747562939085,0.79685,2509.1,2509.0,0.79687]
[1747562939395,0.79688,2509.0,2508.9,3.25648776]
[1747562939598,0.79687,2509.1,2509.0,0.79687]
[1747562940293,0.79688,2509.0,2508.9,3.25648776]
[1747562940596,1.3423,2509.0,2508.9,3.25648776]
[1747562940796,2.12864,2509.2,2509.1,0.79685]
[1747562940997,3.47094,2509.2,2509.1,0.79685]
[1747562945011,3.2078,2509.4,2509.3,0.79678]
[1747562945312,4.00455,2509.4,2509.3,0.79678]
[1747562945718,4.00455,2509.4,2509.3,2.07168]
[1747562946013,4.00455,2509.4,2509.3,1.2749]
[1747562946217,5.33655,2509.4,2509.3,1.2749]
[1747562946915,5.33655,2509.4,2509.3,2.07168]
[1747562947715,3.2078,2509.4,2509.3,2.07168]
[1747562947908,4.00455,2509.4,2509.3,2.07168]
[1747562950513,3.2078,2509.4,2509.3,2.07168]
[1747562951113,3.2078,2509.7,2509.6,0.79669]
[1747562951311,3.2078,2509.7,2509.6,3.46109]
[1747562952222,3.2078,2510.0,2509.9,0.79659]
[1747562953215,4.00436,2510.0,2509.7,1.3743]
[1747562953523,0.79663,2509.9,2509.8,0.79661]
[1747562960018,3.2078,2510.0,2509.9,0.79659]
[1747562960324,3.2078,2510.0,2509.9,8.68559]
[1747562960722,3.2078,2510.0,2509.9,9.96319]
[1747562960925,3.2078,2510.0,2509.9,14.96319]
[1747562961127,3.2078,2510.0,2509.9,22.64109471]
[1747562961524,3.2078,2510.0,2509.9,63.44109471]
[1747562962435,3.2078,2510.0,2509.9,58.44109471]
[1747562965422,3.2078,2510.0,2509.9,55.38309471]
[1747562965923,6.6281,2510.5,2510.4,0.79644]
[1747562966929,3.2078,2510.5,2510.4,0.79644]
[1747562967131,3.2078,2510.5,2510.4,1.43974]
[1747562967132,4.0042,2510.5,2510.4,1.43974]
[1747562967341,0.79647,2510.4,2510.3,0.79645]
[1747562967531,2.07437,2510.4,2510.3,0.79645]
[1747562968133,5.13237,2510.4,2510.3,0.79645]
[1747562968324,5.79337,2510.4,2510.3,0.79645]
[1747562969135,2.73537,2510.4,2510.3,0.79645]
[1747562969634,1.9389,2510.4,2510.3,0.79645]
[1747562970634,2.73534,2510.4,2510.3,0.79645]
[1747562970833,0.7965,2510.3,2510.2,0.79647]
[1747562971033,2.7889,2510.3,2510.2,0.79647]
[1747562972130,1.9924,2510.3,2509.9,3.2078]
[1747562972441,0.79656,2510.1,2510.0,0.79655]
[1747562972832,0.79656,2510.1,2509.9,0.79657]
[1747562972833,0.79659,2510.0,2509.9,0.79657]
[1747562973239,3.85459,2510.0,2509.9,0.79657]
[1747562973741,0.79663,2509.9,2509.8,0.79661]
[1747562973937,6.56472,2509.9,2509.8,0.79663]
[1747562974136,9.62272,2509.9,2509.8,0.79663]
[1747562975841,8.8261,2509.9,2509.8,0.79663]
[1747562976538,9.62269,2509.9,2509.8,0.79663]
[1747562976838,8.8261,2509.9,2509.8,0.79663]
[1747562978634,9.62269,2509.9,2509.8,0.79663]
[1747562978834,0.79667,2509.7,2509.6,0.79666]
[1747562979036,1.3225,2509.8,2509.1,3.17959776]
[1747562979341,0.79674,2509.5,2509.4,0.79675]
[1747562979643,0.79672,2509.5,2509.3,0.79677]
[1747562979842,3.46025,2509.4,2509.3,0.79677]
[1747562980045,2.6635,2509.4,2509.1,1.19379776]
[1747562980347,0.79682,2509.2,2509.1,1.99062776]
[1747562980937,2.11932,2509.2,2509.1,1.19379776]
[1747562981145,5.17732,2509.2,2509.1,1.19379776]
[1747562981646,0.79688,2509.0,2508.9,0.7969]
[1747562981839,5.20007,2509.0,2508.5,41.99379776]
[1747562982043,0.797,2508.7,2508.6,0.797]
[1747562982543,0.79701,2508.6,2508.5,1.99081776]
[1747562982743,1.3249,2508.6,2508.5,1.99081776]
[1747562984646,3.2078,2509.1,2509.0,0.79686]
[1747562984847,5.1919,2509.1,2509.0,0.79686]
[1747562985144,3.2078,2509.1,2509.0,3.85486]
[1747562985549,3.2078,2509.6,2509.3,1.99196]
[1747562985846,4.5604,2509.6,2509.5,0.79672]
[1747562986539,1.3526,2509.6,2509.5,4.00452]
[1747562986938,1.3526,2509.6,2509.5,5.26352]
[1747562988244,1.30548943,2509.8,2509.7,0.79666]
[1747562989651,1.2487,2510.0,2509.9,0.79659]
[1747562989852,2.04526,2510.0,2509.9,0.79659]
[1747562990847,1.2487,2510.0,2509.9,0.79659]
[1747562991542,2.05852,2510.2,2510.1,0.79653]
[1747562991747,3.34912,2510.2,2510.1,0.79653]
[1747562992151,6.40712,2510.2,2510.1,0.79653]
[1747562992551,0.79654,2510.1,2510.0,0.79653]
[1747562992851,1.2906,2510.1,2510.0,0.79653]
[1747562993046,0.79657,2510.0,2509.9,0.79658]
[1747562993247,0.79657,2510.0,2509.9,2.08318]
[1747562994247,2.08715,2510.1,2510.0,0.79656]
[1747562995255,5.14515,2510.1,2510.0,0.79656]
[1747562995950,4.3486,2510.1,2510.0,0.79656]
[1747562996250,3.058,2510.1,2510.0,0.79656]
[1747562996446,3.058,2510.1,2510.0,1.43886]
[1747562996646,3.058,2510.1,2510.0,2.08326]
[1747562996947,3.85453,2510.1,2510.0,1.2867]
[1747562997148,0.79656,2510.0,2509.9,2.08318]
[1747562997451,2.11086,2510.0,2509.9,2.08318]
[1747562997639,1.3143,2510.0,2509.9,2.08318]
[1747562998047,3.85455,2510.1,2510.0,0.79656]
[1747562998249,0.79655,2510.1,2510.0,2.12486]
[1747562999160,3.85455,2510.1,2510.0,2.12486]
[1747562999655,3.85455,2510.1,2510.0,0.79656]
[1747563000357,0.79659,2510.0,2509.9,0.79657]
[1747563000557,2.15409,2510.0,2509.9,0.79657]
[1747563001158,5.21209,2510.0,2509.9,0.79657]
[1747563001560,0.79663,2509.8,2509.7,2.05804]
[1747563001858,0.79665,2509.8,2509.7,0.79662]
[1747563002055,0.79662,2509.9,2509.8,0.79661]
[1747563002254,3.85466,2509.8,2509.7,0.79664]
[1747563002457,4.52056,2509.8,2509.7,0.79664]
[1747563003159,1.46256,2509.8,2509.7,0.79664]
[1747563004159,0.6659,2509.8,2509.7,0.79664]
[1747563004756,2.82263,2509.8,2509.7,0.79664]
[1747563006263,0.79662,2509.9,2509.8,0.79663]
[1747563009171,3.85462,2509.9,2509.8,0.79663]
[1747563010173,0.79662,2509.9,2509.8,0.79663]
[1747563010369,3.35584,2510.0,2509.6,1.2867]
[1747563010571,0.79666,2509.7,2509.6,1.43899]
[1747563010973,0.79669,2509.6,2509.5,3.2078]
[1747563011279,1.43679,2509.6,2509.5,3.2078]
[1747563011763,2.75079,2509.6,2509.5,3.2078]
[1747563012175,5.80879,2509.6,2509.5,3.2078]
[1747563013372,5.80879,2509.6,2509.5,4.00452]
[1747563013579,3.058,2509.6,2509.5,4.00452]
[1747563014180,0.79667,2509.7,2509.6,0.79669]
[1747563014371,0.79667,2509.7,2509.6,2.08339]
[1747563015974,1.287,2509.7,2509.6,2.08339]
[1747563017078,0.79661,2509.9,2509.8,0.79663]
[1747563017377,0.79663,2509.8,2509.7,1.42744]
[1747563017880,0.79663,2509.8,2509.7,0.6308]
[1747563018080,0.79663,2509.8,2509.7,1.42746]
[1747563018281,0.79666,2509.7,2509.6,0.79667]
[1747563018780,0.79666,2509.7,2509.6,1.39327]
[1747563019175,0.79664,2509.8,2509.7,0.79663]
[1747563019581,0.79666,2509.7,2509.6,2.69588]
[1747563020577,0.79666,2509.7,2509.6,1.8992]
[1747563020780,0.79666,2509.7,2509.6,0.5966]
[1747563021081,9.00446,2509.7,2509.6,0.5966]
[1747563021277,12.06246,2509.7,2509.6,0.5966]
[1747563022689,3.85466,2509.7,2509.6,0.5966]
[1747563022885,3.058,2509.7,2509.6,3.41439]
[1747563023185,0.79666,2509.7,2509.6,3.41439]
[1747563026074,0.79665,2509.8,2509.7,0.79665]
[1747563026282,0.79665,2509.8,2509.7,1.46415]
[1747563026486,0.79665,2509.8,2509.7,0.6675]
[1747563028591,0.79665,2509.8,2509.7,1.46416]
[1747563028787,0.79665,2509.8,2509.7,0.6675]
[1747563029291,0.79665,2509.8,2509.7,1.46416]
[1747563030387,7.884,2510.0,2509.7,0.6675]
[1747563030692,8.6806,2510.0,2509.9,0.79659]
[1747563030883,0.7966,2510.0,2509.9,0.79659]
[1747563032794,0.79663,2509.8,2509.7,0.6675]
[1747563033185,3.85463,2509.8,2509.7,0.6675]
[1747563033592,0.79666,2509.7,2509.6,2.5982]
[1747563033792,2.78586,2509.7,2509.6,2.5982]
[1747563033992,2.78586,2509.7,2509.6,3.39489]
[1747563035091,5.84386,2509.7,2509.6,3.39489]
[1747563036087,2.78586,2509.7,2509.6,3.39489]
[1747563039093,2.78586,2509.7,2509.6,2.5982]
[1747563039595,2.78586,2509.7,2509.6,3.39489]
[1747563043199,2.78586,2509.7,2509.6,0.5966]
[1747563044488,2.78586,2509.7,2509.6,1.39329]
[1747563045088,1.46574,2509.8,2509.7,0.79666]
[1747563045596,1.46574,2509.8,2509.7,1.48026]
[1747563045895,2.71094,2509.8,2509.7,1.48026]
[1747563046397,2.71094,2509.8,2509.7,0.6836]
[1747563046899,1.2452,2509.8,2509.7,1.48026]
[1747563047100,8.67657,2510.0,2509.9,0.79659]
[1747563048196,11.73457,2510.0,2509.9,0.79659]
[1747563048395,10.938,2510.0,2509.9,0.79659]
[1747563048597,3.058,2510.0,2509.9,0.79659]
[1747563049192,8.40995174,2510.1,2510.0,0.79656]
[1747563049689,0.79658,2510.0,2509.9,0.79657]
[1747563050096,0.79659,2509.9,2509.8,1.3594]
[1747563050297,0.79659,2509.9,2509.7,3.2078]
[1747563050298,0.79663,2509.8,2509.7,3.2078]
[1747563050491,1.42443,2509.8,2509.7,3.2078]
[1747563050689,0.79666,2509.7,2509.6,1.5371]
[1747563050888,2.06776,2509.7,2509.6,1.5371]
[1747563053400,2.06776,2509.7,2509.6,2.33379]
[1747563053897,1.2711,2509.7,2509.6,3.66629]
[1747563054797,2.06776,2509.7,2509.6,3.66629]
[1747563054993,1.2711,2509.7,2509.6,3.66629]
[1747563057798,2.06776,2509.7,2509.6,3.66629]
[1747563057993,2.06776,2509.7,2509.6,1.5371]
[1747563058198,5.12576,2509.7,2509.6,1.5371]
[1747563059904,5.12576,2509.7,2509.6,2.33379]
[1747563060199,2.06776,2509.7,2509.6,2.33379]
[1747563060387,2.06776,2509.7,2509.6,1.5371]
[1747563060795,2.06776,2509.7,2509.6,2.33379]
[1747563061800,3.16041174,2510.0,2509.6,1.5371]
[1747563062001,3.16041174,2510.0,2509.9,0.79659]
[1747563062204,3.16041174,2510.0,2509.9,4.00439]
[1747563062503,3.16041174,2510.0,2509.9,57.67939]
[1747563062899,3.16041174,2510.0,2509.9,58.96649]
[1747563063104,3.16041174,2510.0,2509.9,62.02449]
[1747563064105,2.10186943,2510.6,2510.5,0.7964]
[1747563064495,0.7964,2510.5,2510.4,0.79641]
[1747563064700,0.7964,2510.5,2510.4,1.3367]
[1747563064992,1.30548943,2510.6,2510.3,4.00424]
[1747563064993,1.30548943,2510.6,2510.3,3.2078]
[1747563065297,0.79651,2510.2,2510.1,0.79652]
[1747563065695,0.79651,2510.2,2510.1,2.72652]
[1747563066202,0.79648,2510.3,2510.2,0.79648]
[1747563066403,0.79648,2510.3,2510.2,2.11618]
[1747563067006,0.79646,2510.4,2510.3,0.79646]
[1747563068396,2.05402,2510.5,2510.4,0.79644]
[1747563069205,0.79644,2510.4,2510.3,1.45605]
[1747563069503,0.79642,2510.5,2510.4,0.79642]
[1747563069704,0.79642,2510.5,2510.4,2.13352]
[1747563071005,0.79642,2510.5,2510.4,2.80212]
[1747563071598,2.06538,2510.6,2510.5,0.7964]
[1747563071906,2.06538,2510.6,2510.5,1.3371]
[1747563073406,0.7964,2510.5,2510.4,0.6686]
[1747563073603,2.0902,2510.5,2510.4,0.6686]
[1747563074609,2.0902,2510.5,2510.4,1.46504]
[1747563074803,2.0902,2510.5,2510.4,2.81374]
[1747563076111,2.0902,2510.5,2510.4,2.0173]
[1747563077599,0.79644,2510.4,2510.3,2.218]
[1747563077908,2.84144,2510.4,2510.3,2.218]
[1747563078105,2.84144,2510.4,2510.3,0.9402]
[1747563080304,5.89944,2510.4,2510.3,0.9402]
[1747563081406,10.89944,2510.4,2510.3,0.9402]
[1747563083507,10.89944,2510.4,2510.1,0.5933]
[1747563083508,0.7965,2510.2,2510.1,0.5933]
[1747563083812,0.79666,2509.7,2509.6,4.486]
[1747563084014,0.79666,2509.7,2509.6,6.59398]
[1747563084908,1.2435,2509.8,2509.7,0.79666]
[1747563085405,2.04013,2509.8,2509.7,2.14456]
[1747563086110,2.04013,2509.8,2509.7,1.3479]
[1747563086312,1.2435,2509.8,2509.7,2.14456]
[1747563086512,1.43171,2509.9,2509.8,0.79663]
[1747563086712,1.43171,2509.9,2509.8,2.14453]
[1747563087716,1.43171,2509.9,2509.8,1.3479]
[1747563087915,0.79666,2509.7,2509.6,1.2782]
[1747563088316,0.79675,2509.4,2509.3,3.2078]
[1747563089219,2.07085,2509.4,2509.3,3.2078]
[1747563090818,0.79678,2509.3,2509.2,4.38199776]
[1747563091006,2.06068,2509.3,2509.2,3.13539776]
[1747563091210,2.06068,2509.3,2509.2,2.47219776]
[1747563091417,1.2639,2509.3,2509.2,0.79682]
[1747563091815,1.2639,2509.3,2509.2,2.06672]
[1747563092013,2.06071,2509.3,2509.2,2.06672]
[1747563093322,2.06071,2509.3,2509.2,1.2699]
[1747563093620,2.06071,2509.3,2509.1,1.42003]
[1747563093621,0.79682,2509.2,2509.1,0.6232]
[1747563093813,2.10462,2509.2,2509.1,0.6232]
[1747563094222,2.10462,2509.2,2509.1,1.9081]
[1747563094722,2.10462,2509.2,2509.1,2.70495]
[1747563098521,2.10462,2509.2,2509.1,1.9081]
[1747563109325,2.10462,2509.2,2509.1,2.00028003]
[1747563110427,2.10462,2509.2,2509.1,0.09218003]
[1747563111428,0.79685,2509.1,2509.0,0.622]
[1747563111629,2.81365,2509.1,2509.0,0.622]
[1747563113640,2.81365,2509.1,2509.0,1.8845]
[1747563118741,2.81365,2509.1,2509.0,3.05158318]
[1747563122040,2.81365,2509.1,2509.0,1.8845]
[1747563125946,0.79691,2508.9,2508.8,1.2786]
[1747563128244,0.79691,2508.9,2508.8,2.5639]